fUST/lending_fUST_20250605
["ID","MTS","AMOUNT","RATE_DAILY","PERIOD"]
[364352105,1749077440651,-700.83,0.00020628,2]
[364352107,1749077440662,-1347.79,0.00020639,2]
[364352109,1749077440671,-1006.88,0.000207,2]
[364352111,1749077440680,-500.0,0.00020711,2]
[364352113,1749077440690,-500.0,0.00020711,2]
[364352115,1749077440699,-500.0,0.00020711,2]
[364352117,1749077440708,-500.0,0.00020711,2]
[364352119,1749077440718,-500.0,0.00020711,2]
[364352121,1749077440727,-500.0,0.00020711,2]
[364352123,1749077440737,-500.0,0.00020711,2]
[364352125,1749077440746,-500.70811129,0.00020711,2]
[364352127,1749077440755,-1550.28066328,0.00020797,4]
[364352129,1749077440765,-932.21,0.000209,2]
[364352131,1749077440775,-440.0,0.000209,2]
[364352133,1749077440785,-440.0,0.000209,2]
[364352135,1749077440794,-652.72,0.000209,2]
[364352137,1749077440803,-819.2,0.00020901,2]
[364352139,1749077440812,-440.0,0.00020901,2]
[364352141,1749077440822,-500.28,0.00020902,2]
[364352143,1749077440831,-1081.82,0.00020902,2]
[364352145,1749077440841,-204.27,0.00020902,2]
[364352147,1749077440850,-440.0,0.00020902,2]
[364352149,1749077440859,-546.79,0.00020902,2]
[364352151,1749077440869,-440.0,0.00020902,2]
[364352152,1749077440880,-700.83,0.00020902,2]
[364352154,1749077440891,-1347.79,0.00020913,2]
[364352156,1749077440902,-158.2799449,0.00020944,2]
[364352159,1749077440912,-1550.28066328,0.00021038,4]
[364352160,1749077440922,-2000.0,0.00021164,2]
[364352163,1749077440933,-932.21,0.00021174,2]
[364352164,1749077440942,-440.0,0.00021174,2]
[364352166,1749077440951,-440.0,0.00021174,2]
[364352168,1749077440962,-652.72,0.00021174,2]
[364352170,1749077440972,-819.2,0.00021175,2]
[364352172,1749077440982,-440.0,0.00021175,2]
[364352174,1749077440991,-500.28,0.00021176,2]
[364352177,1749077441002,-1081.82,0.00021176,2]
[364352178,1749077441011,-440.0,0.00021176,2]
[364352180,1749077441020,-440.0,0.00021176,2]
[364352183,1749077441030,-700.83,0.00021176,2]
[364352184,1749077441039,-1347.79,0.00021187,2]
[364352186,1749077441049,-1000.0,0.00021259,2]
[364352188,1749077441059,-1000.0,0.00021259,2]
[364352190,1749077441068,-1000.0,0.00021259,2]
[364352204,1749077441183,-1000.50520965,0.00021259,2]
[364352206,1749077441193,-509.59323327,0.00021259,2]
[364352208,1749077441202,-503.81646108,0.00021259,2]
[364352210,1749077441212,-1000.0,0.00021259,2]
[364352212,1749077441221,-1550.28066328,0.00021279,5]
[364352214,1749077441230,-932.21,0.00021448,2]
[364352216,1749077441240,-313.51,0.00021448,2]
[364352218,1749077441249,-440.0,0.00021448,2]
[364352220,1749077441258,-652.72,0.00021448,2]
[364352222,1749077441267,-819.2,0.00021449,2]
[364352224,1749077441276,-440.0,0.00021449,2]
[364352226,1749077441285,-500.28,0.0002145,2]
[364352228,1749077441294,-1081.82,0.0002145,2]
[364352230,1749077441303,-440.0,0.0002145,2]
[364352232,1749077441313,-440.0,0.0002145,2]
[364352234,1749077441322,-700.83,0.0002145,2]
[364352236,1749077441332,-1347.79,0.00021461,2]
[364352237,1749077441342,-1550.28066328,0.00021521,5]
[364352240,1749077441351,-932.21,0.00021722,2]
[364352241,1749077441361,-440.0,0.00021722,2]
[364352243,1749077441371,-652.72,0.00021722,2]
[364352245,1749077441380,-819.2,0.00021723,2]
[364352247,1749077441389,-440.0,0.00021723,2]
[364352249,1749077441398,-500.28,0.00021724,2]
[364352251,1749077441407,-1081.82,0.00021724,2]
[364352253,1749077441416,-440.0,0.00021724,2]
[364352255,1749077441425,-440.0,0.00021724,2]
[364352257,1749077441434,-700.83,0.00021724,2]
[364352259,1749077441443,-208974.18344,0.00021734,2]
[364352261,1749077441453,-1347.79,0.00021735,2]
[364352263,1749077441462,-1550.28066328,0.00021762,5]
[364352265,1749077441472,-500.0,0.00021807,2]
[364352267,1749077441481,-1298.60513958,0.00021807,2]
[364352269,1749077441492,-1500.0,0.00021807,2]
[364352271,1749077441501,-500.0,0.00021888,2]
[364352273,1749077441510,-500.0,0.00021915,2]
[364352275,1749077441520,-200.0,0.00021917,2]
[364352277,1749077441530,-500.0,0.00021917,2]
[364352279,1749077441539,-500.0,0.00021917,2]
[364352281,1749077441549,-500.0,0.00021917,2]
[364352283,1749077441559,-500.0,0.00021917,2]
[364352285,1749077441568,-500.0,0.00021917,2]
[364352287,1749077441577,-500.0,0.00021917,2]
[364352289,1749077441586,-570.15,0.00021917,2]
[364352291,1749077441595,-500.0,0.00021917,2]
[364352293,1749077441606,-932.21,0.00021996,2]
[364352295,1749077441615,-440.0,0.00021996,2]
[364352297,1749077441624,-652.72,0.00021996,2]
[364352299,1749077441634,-819.2,0.00021997,2]
[364352301,1749077441643,-440.0,0.00021997,2]
[364352303,1749077441653,-500.28,0.00021998,2]
[364352305,1749077441662,-1081.82,0.00021998,2]
[364352307,1749077441671,-440.0,0.00021998,2]
[364352309,1749077441681,-232.9,0.00021998,2]
[364352311,1749077441690,-700.83,0.00021998,2]
[364352313,1749077441699,-1006.88,0.00022,7]
[364352315,1749077441709,-1017.47,0.00022,7]
[364352317,1749077441718,-188.0,0.00022,2]
[364352319,1749077441727,-171.0,0.00022,2]
[364352321,1749077441737,-151.0,0.00022,2]
[364352323,1749077441746,-1550.28066328,0.00022003,6]
[364352325,1749077441756,-823.0,0.00022008,2]
[364352327,1749077441765,-1347.79,0.00022009,2]
[364352329,1749077441774,-546.72605437,0.0002215,2]
[364352330,1749077441783,-500.0,0.0002215,2]
[364352332,1749077441792,-2380.45724693,0.00022198,2]
[364352334,1749077441802,-1550.28066328,0.00022245,6]
[364352336,1749077441811,-2000.0,0.0002226,2]
[364352338,1749077441820,-932.21,0.0002227,2]
[364352341,1749077441830,-440.0,0.0002227,2]
[364352342,1749077441840,-652.72,0.0002227,2]
[364352344,1749077441850,-819.2,0.00022271,2]
[364352346,1749077441860,-440.0,0.00022271,2]
[364352348,1749077441870,-500.28,0.00022272,2]
[364352350,1749077441883,-1081.82,0.00022272,2]
[364352353,1749077441892,-440.0,0.00022272,2]
[364352354,1749077441901,-700.83,0.00022272,2]
[364352357,1749077441911,-364.5816698,0.00022274,2]
[364352358,1749077441921,-364.5816698,0.00022274,2]
[364352360,1749077441931,-364.5816698,0.00022274,2]
[364352362,1749077441940,-364.5816698,0.00022274,2]
[364352365,1749077441949,-364.5816698,0.00022274,2]
[364352366,1749077441961,-364.5816698,0.00022274,2]
[364352369,1749077441971,-364.5816698,0.00022274,2]
[364352370,1749077441980,-364.5816698,0.00022274,2]
[364352372,1749077441989,-364.5816698,0.00022274,2]
[364352374,1749077441999,-1347.79,0.00022283,2]
[364352377,1749077442008,-250.0,0.00022289,2]
[364352379,1749077442020,-2000.0,0.00022355,2]
[364352381,1749077442030,-1000.0,0.00022435,2]
[364352382,1749077442039,-1000.0,0.00022463,2]
[364352385,1749077442050,-500.0,0.00022465,2]
[364352386,1749077442060,-1550.28066328,0.00022486,7]
[364352388,1749077442070,-158.2799449,0.00022521,2]
[364352390,1749077442080,-932.21,0.00022544,2]
[364352392,1749077442090,-440.0,0.00022544,2]
[364352394,1749077442100,-652.72,0.00022544,2]
[364352396,1749077442111,-819.2,0.00022545,2]
[364352398,1749077442120,-238.98,0.00022545,2]
[364352400,1749077442129,-500.28,0.00022546,2]
[364352402,1749077442139,-1081.82,0.00022546,2]
[364352404,1749077442148,-440.0,0.00022546,2]
[364352406,1749077442157,-700.83,0.00022546,2]
[364352408,1749077442167,-353.057519,0.00022548,2]
[364352410,1749077442176,-390.5657552,0.00022548,2]
[364352412,1749077442185,-598.3617362,0.00022548,2]
[364352414,1749077442194,-153.0,0.00022548,2]
[364352416,1749077442204,-158.575084,0.00022548,2]
[364352418,1749077442213,-153.0,0.00022548,2]
[364352420,1749077442222,-158.575084,0.00022548,2]
[364352422,1749077442231,-153.0,0.00022548,2]
[364352424,1749077442239,-572.7197194,0.00022548,2]
[364352426,1749077442249,-153.0,0.00022548,2]
[364352428,1749077442258,-158.575084,0.00022548,2]
[364352430,1749077442267,-572.7197194,0.00022548,2]
[364352432,1749077442277,-153.0,0.00022548,2]
[364352434,1749077442286,-158.575084,0.00022548,2]
[364352436,1749077442295,-153.0,0.00022548,2]
[364352438,1749077442304,-572.7197194,0.00022548,2]
[364352440,1749077442314,-572.7197194,0.00022548,2]
[364352442,1749077442323,-158.575084,0.00022548,2]
[364352444,1749077442332,-153.0,0.00022548,2]
[364352446,1749077442342,-153.0,0.00022548,2]
[364352448,1749077442351,-153.0,0.00022548,2]
[364352450,1749077442361,-153.0,0.00022548,2]
[364352452,1749077442371,-1347.79,0.00022557,2]
[364352454,1749077442381,-2000.0,0.00022684,2]
[364352456,1749077442390,-2000.0,0.00022684,2]
[364352458,1749077442399,-222.03353951,0.00022684,2]
[364352460,1749077442409,-224.53576733,0.00022698,2]
[364352462,1749077442418,-1550.28066328,0.00022728,7]
[364352464,1749077442427,-207.4,0.00022758,2]
[364352465,1749077442437,-500.0,0.00022758,2]
[364352467,1749077442448,-500.0,0.00022758,2]
[364352470,1749077442458,-500.0,0.00022758,2]
[364352472,1749077442469,-500.0,0.00022758,2]
[364352474,1749077442478,-500.0,0.00022758,2]
[364352476,1749077442488,-500.0,0.00022758,2]
[364352478,1749077442498,-500.0,0.00022758,2]
[364352479,1749077442507,-500.0,0.00022758,2]
[364352482,1749077442517,-500.0,0.00022758,2]
[364352484,1749077442527,-500.0,0.00022758,2]
[364352485,1749077442536,-500.0,0.00022758,2]
[364352487,1749077442545,-500.0,0.00022758,2]
[364352490,1749077442554,-500.0,0.00022758,2]
[364352492,1749077442563,-500.0,0.00022758,2]
[364352493,1749077442573,-500.0,0.00022758,2]
[364352496,1749077442582,-500.0,0.00022758,2]
[364352497,1749077442591,-500.0,0.00022758,2]
[364352499,1749077442601,-500.0,0.00022758,2]
[364352502,1749077442611,-500.0,0.00022758,2]
[364352503,1749077442621,-500.0,0.00022758,2]
[364352505,1749077442631,-500.0,0.00022758,2]
[364352507,1749077442642,-500.0,0.00022758,2]
[364352510,1749077442652,-5000.0,0.00022758,2]
[364352512,1749077442662,-500.0,0.00022758,2]
[364352513,1749077442671,-500.0,0.00022758,2]
[364352515,1749077442681,-500.0,0.00022758,2]
[364352517,1749077442690,-500.0,0.00022758,2]
[364352519,1749077442700,-500.0,0.00022758,2]
[364352521,1749077442710,-932.21,0.00022818,2]
[364352523,1749077442719,-440.0,0.00022818,2]
[364352525,1749077442728,-652.72,0.00022818,2]
[364352527,1749077442738,-819.2,0.00022819,2]
[364352529,1749077442748,-500.28,0.0002282,2]
[364352532,1749077442757,-1081.82,0.0002282,2]
[364352534,1749077442767,-440.0,0.0002282,2]
[364352536,1749077442778,-700.83,0.0002282,2]
[364352538,1749077442787,-1347.79,0.00022831,2]
[364352541,1749077442797,-1000.0,0.00022903,2]
[364352542,1749077442806,-800.0,0.00022965,2]
[364352545,1749077442815,-1550.28066328,0.00022969,8]
[364352546,1749077442825,-12500.0,0.00022979,3]
[364352548,1749077442835,-12500.0,0.00022988,3]
[364352551,1749077442845,-12500.0,0.00022999,3]
[364352552,1749077442854,-193028.6480171,0.00023,2]
[364352555,1749077442864,-3023.01456812,0.00023,2]
[364352557,1749077442874,-229.45591648,0.00023,3]
[364352559,1749077442887,-155.0,0.00023,2]
[364352560,1749077442897,-151.0,0.00023,7]
[364352562,1749077442907,-160.0,0.00023,3]
[364352564,1749077442919,-151.0,0.00023,7]
[364352566,1749077442928,-151.353286,0.00023,7]
[364352569,1749077442938,-151.0,0.00023,7]
[364352570,1749077442947,-1500.0,0.00023011,2]
[364352572,1749077442959,-500.0,0.00023013,2]
[364352575,1749077442969,-151.0,0.00023014,7]
[364352577,1749077442978,-932.21,0.00023092,2]
[364352579,1749077442988,-440.0,0.00023092,2]
[364352580,1749077442997,-652.72,0.00023092,2]
[364352583,1749077443010,-819.2,0.00023093,2]
[364352584,1749077443019,-500.28,0.00023094,2]
[364352587,1749077443029,-1081.82,0.00023094,2]
[364352589,1749077443038,-440.0,0.00023094,2]
[364352590,1749077443047,-700.83,0.00023094,2]
[364352592,1749077443057,-429.6268367,0.00023096,2]
[364352594,1749077443066,-1006.88,0.000231,7]
[364352596,1749077443077,-1347.79,0.00023105,2]
[364352599,1749077443086,-159.40357236,0.00023123,2]
[364352601,1749077443097,-962.0,0.00023191,2]
[364352603,1749077443107,-709.0,0.00023191,2]
[364352605,1749077443116,-2225.0,0.00023191,2]
[364352607,1749077443126,-1017.47,0.000232,7]
[364352609,1749077443136,-1550.28066328,0.0002321,8]
[364352611,1749077443145,-600.0,0.00023245,2]
[364352613,1749077443155,-160.0,0.0002326,3]
[364352614,1749077443164,-471.81983633,0.0002326,2]
[364352617,1749077443174,-421.2414493,0.0002326,2]
[364352618,1749077443184,-728.1231,0.0002326,2]
[364352621,1749077443193,-200.0,0.00023287,2]
[364352623,1749077443203,-200.0,0.00023287,2]
[364352625,1749077443213,-200.0,0.00023287,2]
[364352626,1749077443222,-200.0,0.00023287,2]
[364352629,1749077443232,-200.0,0.00023287,2]
[364352631,1749077443241,-200.0,0.00023287,2]
[364352632,1749077443251,-200.0,0.00023287,2]
[364352634,1749077443260,-200.0,0.00023287,2]
[364352637,1749077443270,-200.0,0.00023287,2]
[364352638,1749077443279,-200.0,0.00023287,2]
[364352641,1749077443289,-200.0,0.00023287,2]
[364352643,1749077443298,-200.0,0.00023287,2]
[364352645,1749077443307,-200.0,0.00023287,2]
[364352647,1749077443317,-200.0,0.00023287,2]
[364352649,1749077443326,-200.0,0.00023287,2]
[364352651,1749077443336,-200.0,0.00023287,2]
[364352653,1749077443345,-200.0,0.00023287,2]
[364352654,1749077443354,-200.0,0.00023287,2]
[364352656,1749077443363,-200.0,0.00023287,2]
[364352658,1749077443373,-200.0,0.00023287,2]
[364352660,1749077443383,-5000.0,0.00023306,2]
[364352663,1749077443392,-2000.0,0.00023356,2]
[364352665,1749077443401,-932.21,0.00023366,2]
[364352666,1749077443411,-440.0,0.00023366,2]
[364352669,1749077443420,-652.72,0.00023366,2]
[364352670,1749077443429,-819.2,0.00023367,2]
[364352672,1749077443439,-500.28,0.00023368,2]
[364352674,1749077443448,-1081.82,0.00023368,2]
[364352676,1749077443457,-440.0,0.00023368,2]
[364352679,1749077443471,-700.83,0.00023368,2]
[364352681,1749077443480,-257.36609889,0.00023369,2]
[364352683,1749077443491,-270.8437063,0.0002337,2]
[364352685,1749077443501,-306.0,0.0002337,2]
[364352687,1749077443511,-1347.79,0.00023379,2]
[364352689,1749077443520,-153.0,0.00023397,2]
[364352691,1749077443530,-153.0,0.00023397,2]
[364352693,1749077443539,-153.0,0.00023397,2]
[364352694,1749077443549,-153.0,0.00023397,2]
[364352696,1749077443559,-153.0,0.00023397,2]
[364352698,1749077443569,-153.0,0.00023397,2]
[364352700,1749077443579,-153.0,0.00023397,2]
[364352702,1749077443591,-1108.630773,0.000234,2]
[364352704,1749077443600,-151.0,0.000234,7]
[364352705,1749077443611,-159.40357236,0.00023425,2]
[364352707,1749077443620,-159.40667164,0.00023425,2]
[364352709,1749077443631,-1550.28066328,0.00023452,9]
[364352711,1749077443640,-600.0,0.00023488,2]
[364352713,1749077443650,-6804.6695567,0.000235,3]
[364352714,1749077443659,-4057.78858513,0.000235,2]
[364352716,1749077443670,-68712.61032949,0.000235,2]
[364352718,1749077443680,-151.0,0.000235,7]
[364352720,1749077443690,-151.0,0.000235,7]
[364352721,1749077443699,-226.185763,0.000235,7]
[364352723,1749077443709,-151.0,0.000235,7]
[364352732,1749077443810,-151.0,0.000235,7]
[364352734,1749077443820,-1041.972702,0.000235,7]
[364352736,1749077443830,-1041.972702,0.000235,7]
[364352738,1749077443840,-1607.325022,0.000235,2]
[364352740,1749077443849,-1607.325022,0.000235,2]
[364352742,1749077443860,-237.13056107,0.000235,7]
[364352743,1749077443870,-151.0,0.000235,7]
[364352745,1749077443882,-152.461731,0.000235,7]
[364352747,1749077443893,-151.0,0.000235,7]
[364352749,1749077443903,-151.0,0.000235,7]
[364352750,1749077443912,-151.0,0.000235,7]
[364352752,1749077443923,-151.0,0.000235,7]
[364352754,1749077443932,-510.02909599,0.00023559,2]
[364352756,1749077443942,-500.0,0.00023561,2]
[364352758,1749077443952,-932.21,0.0002364,2]
[364352759,1749077443962,-440.0,0.0002364,2]
[364352761,1749077443972,-652.72,0.0002364,2]
[364352763,1749077443982,-819.2,0.00023641,2]
[364352765,1749077443992,-500.28,0.00023642,2]
[364352767,1749077444002,-1081.82,0.00023642,2]
[364352769,1749077444012,-395.69,0.00023642,2]
[364352770,1749077444022,-1347.79,0.00023653,2]
[364352772,1749077444032,-306.0,0.00023671,2]
[364352774,1749077444042,-153.0,0.00023671,2]
[364352776,1749077444053,-153.0,0.00023671,2]
[364352778,1749077444063,-153.0,0.00023671,2]
[364352780,1749077444072,-153.0,0.00023671,2]
[364352781,1749077444082,-153.0,0.00023671,2]
[364352783,1749077444092,-1550.28066328,0.00023693,9]
[364352785,1749077444102,-151.0,0.000237,5]
[364352787,1749077444112,-151.0,0.000237,5]
[364352789,1749077444123,-937.983197,0.00023729,3]
[364352790,1749077444134,-365.24,0.00023748,10]
[364352792,1749077444144,-159.40357236,0.00023753,2]
[364352794,1749077444154,-159.40667164,0.00023753,2]
[364352796,1749077444163,-159.41287023,0.00023753,2]
[364352798,1749077444173,-159.41287023,0.00023753,2]
[364352800,1749077444182,-176.545,0.00023791,2]
[364352802,1749077444192,-17712.52176432,0.000238,2]
[364352803,1749077444204,-151558.13276774,0.000238,3]
[364352813,1749077444301,-440.0,0.00017888,2]
[364352815,1749077444311,-893.9,0.000209,2]
[364352817,1749077444321,-784.15251598,0.00021174,2]
[364352823,1749077444383,-440.0,0.00017887,2]
[364352825,1749077444392,-440.0,0.00018161,2]
[364352827,1749077444402,-109.74748402,0.00021174,2]
[364352829,1749077444412,-893.9,0.00021448,2]
[364352831,1749077444421,-893.9,0.00021722,2]
[364352833,1749077444430,-6668.28781598,0.000218,2]
[364352835,1749077444441,-3608.83201689,0.000218,2]
[364353006,1749077446330,-440.0,0.00018435,2]
[364353008,1749077446340,-440.0,0.00018709,2]
[364353010,1749077446350,-440.0,0.00018983,2]
[364353012,1749077446361,-440.0,0.00019257,2]
[364353014,1749077446371,-440.0,0.00019531,2]
[364353015,1749077446380,-440.0,0.00019805,2]
[364353017,1749077446389,-440.0,0.00020079,2]
[364353019,1749077446399,-440.0,0.00020353,2]
[364353021,1749077446408,-440.0,0.00020627,2]
[364353023,1749077446418,-440.0,0.00020901,2]
[364353025,1749077446428,-557.89,0.00021175,2]
[364353027,1749077446437,-20905.26456686,0.000218,2]
[364353029,1749077446448,-4013.1098508,0.000218,2]
[364354604,1749078040458,1289.99,0.00025,120]
[364354621,1749078429433,289.260945,0.00013699,2]
[364354643,1749078632287,-197.9066963,0.00016239,2]
[364354645,1749078632297,-187.0,0.00017168,2]
[364354647,1749078632307,-300.0,0.00017168,2]
[364354649,1749078632318,-300.0,0.00017168,2]
[364354651,1749078632327,-300.0,0.00017168,2]
[364354654,1749078632338,-160.0,0.00017168,2]
[364354656,1749078632347,-300.0,0.00017169,2]
[364354657,1749078632358,-232.0,0.00017169,2]
[364354659,1749078632367,-440.0,0.0001717,2]
[364354661,1749078632377,-440.0,0.0001717,2]
[364354663,1749078632387,-440.0,0.0001717,2]
[364354665,1749078632396,-534.77,0.0001717,2]
[364354667,1749078632405,-1020.64,0.0001717,2]
[364354669,1749078632415,-1113.29,0.0001717,2]
[364354671,1749078632424,-430.0,0.0001717,2]
[364354672,1749078632434,-440.0,0.0001717,2]
[364354673,1749078632443,-430.0,0.0001717,2]
[364354674,1749078632453,-430.0,0.0001717,2]
[364354675,1749078632462,-440.0,0.0001717,2]
[364354676,1749078632471,-440.0,0.0001717,2]
[364354677,1749078632481,-365.47869035,0.0001717,2]
[364354678,1749078632490,-440.0,0.0001717,2]
[364354679,1749078632500,-440.0,0.0001717,2]
[364354680,1749078632509,-440.0,0.0001717,2]
[364354681,1749078632518,-440.0,0.0001717,2]
[364354682,1749078632528,-440.0,0.0001717,2]
[364354683,1749078632537,-440.0,0.0001717,2]
[364354684,1749078632547,-490.0,0.0001717,2]
[364354685,1749078632556,-440.0,0.0001717,2]
[364354687,1749078632574,-440.0,0.0001717,2]
[364354688,1749078632585,-330.60566109,0.0001717,2]
[364354689,1749078632595,-440.0,0.0001717,2]
[364354690,1749078632605,-440.0,0.0001717,2]
[364354691,1749078632615,-440.0,0.0001717,2]
[364354692,1749078632624,-430.0,0.0001717,2]
[364354693,1749078632634,-440.0,0.0001717,2]
[364354694,1749078632643,-440.0,0.0001717,2]
[364354695,1749078632653,-440.0,0.0001717,2]
[364354696,1749078632662,-430.0,0.0001717,2]
[364354697,1749078632672,-440.0,0.0001717,2]
[364354698,1749078632681,-440.0,0.0001717,2]
[364354699,1749078632691,-440.0,0.0001717,2]
[364354700,1749078632700,-440.0,0.0001717,2]
[364354701,1749078632710,-505.76154472,0.0001717,2]
[364354702,1749078632719,-440.0,0.0001717,2]
[364354703,1749078632728,-440.0,0.0001717,2]
[364354704,1749078632738,-440.0,0.0001717,2]
[364354705,1749078632748,-440.0,0.0001717,2]
[364354706,1749078632757,-440.0,0.0001717,2]
[364354707,1749078632767,-440.0,0.0001717,2]
[364354708,1749078632777,-440.0,0.0001717,2]
[364354709,1749078632787,-440.0,0.0001717,2]
[364354710,1749078632798,-440.0,0.0001717,2]
[364354711,1749078632807,-440.0,0.0001717,2]
[364354712,1749078632817,-440.0,0.0001717,2]
[364354713,1749078632826,-440.0,0.0001717,2]
[364354714,1749078632836,-440.0,0.0001717,2]
[364354715,1749078632845,-440.0,0.0001717,2]
[364354716,1749078632855,-440.0,0.0001717,2]
[364354717,1749078632865,-440.0,0.0001717,2]
[364354718,1749078632875,-604.28351266,0.0001717,2]
[364354719,1749078632884,-440.0,0.00017171,2]
[364354720,1749078632894,-440.0,0.00017171,2]
[364354721,1749078632903,-440.0,0.00017171,2]
[364354722,1749078632913,-430.0,0.00017171,2]
[364354723,1749078632923,-440.0,0.00017171,2]
[364354724,1749078632933,-440.0,0.00017171,2]
[364354725,1749078632943,-430.0,0.00017171,2]
[364354726,1749078632952,-400.0,0.00017171,2]
[364354727,1749078632962,-344.11,0.00017171,2]
[364354728,1749078632972,-430.0,0.00017171,2]
[364354729,1749078632982,-430.0,0.00017171,2]
[364354730,1749078632991,-282.57561481,0.00017171,2]
[364354731,1749078633001,-400.0,0.00017171,2]
[364354732,1749078633010,-440.0,0.00017171,2]
[364354733,1749078633020,-440.0,0.00017171,2]
[364354734,1749078633029,-398.95049704,0.00017171,2]
[364354735,1749078633039,-430.0,0.00017171,2]
[364354736,1749078633049,-440.0,0.00017171,2]
[364354737,1749078633058,-440.0,0.00017171,2]
[364354738,1749078633068,-440.0,0.00017171,2]
[364354739,1749078633078,-440.0,0.00017171,2]
[364354740,1749078633087,-472.27976292,0.00017171,2]
[364354741,1749078633097,-440.0,0.00017171,2]
[364354742,1749078633108,-440.0,0.00017171,2]
[364354743,1749078633118,-440.0,0.00017171,2]
[364354744,1749078633127,-440.0,0.00017171,2]
[364354745,1749078633138,-160.0,0.00017171,2]
[364354746,1749078633148,-500.0,0.00017171,2]
[364354747,1749078633157,-331.15364296,0.00017171,2]
[364354748,1749078633167,-440.0,0.00017171,2]
[364354749,1749078633177,-450.0,0.00017171,2]
[364354750,1749078633190,-430.0,0.00017171,2]
[364354751,1749078633199,-440.0,0.00017171,2]
[364354752,1749078633209,-450.03230617,0.00017171,2]
[364354753,1749078633219,-440.0,0.00017171,2]
[364354754,1749078633228,-440.0,0.00017171,2]
[364354755,1749078633238,-440.0,0.00017171,2]
[364354756,1749078633248,-440.0,0.00017171,2]
[364354757,1749078633260,-440.0,0.00017171,2]
[364354758,1749078633271,-440.0,0.00017171,2]
[364354759,1749078633281,-440.0,0.00017171,2]
[364354760,1749078633290,-440.0,0.00017171,2]
[364354761,1749078633301,-440.0,0.00017171,2]
[364354762,1749078633310,-440.0,0.00017171,2]
[364354763,1749078633320,-440.0,0.00017171,2]
[364354764,1749078633331,-440.0,0.00017171,2]
[364354765,1749078633341,-440.0,0.00017171,2]
[364354766,1749078633352,-440.0,0.00017171,2]
[364354767,1749078633362,-440.0,0.00017171,2]
[364354768,1749078633371,-430.0,0.00017171,2]
[364354769,1749078633381,-400.0,0.00017171,2]
[364354770,1749078633393,-500.0,0.00017171,2]
[364354771,1749078633403,-440.0,0.00017171,2]
[364354772,1749078633413,-440.0,0.00017171,2]
[364354773,1749078633423,-440.0,0.00017171,2]
[364354774,1749078633434,-440.0,0.00017171,2]
[364354775,1749078633444,-396.84150893,0.00017171,2]
[364354776,1749078633454,-450.0,0.00017171,2]
[364354777,1749078633464,-440.0,0.00017171,2]
[364354778,1749078633474,-440.0,0.00017171,2]
[364354779,1749078633484,-440.0,0.00017171,2]
[364354780,1749078633494,-370.53948181,0.00017171,2]
[364354781,1749078633504,-430.0,0.00017171,2]
[364354782,1749078633514,-374.19538542,0.00017171,2]
[364354783,1749078633524,-440.0,0.00017171,2]
[364354784,1749078633534,-440.0,0.00017171,2]
[364354785,1749078633544,-440.0,0.00017171,2]